fUST/lending_fUST_20240703
["ID","MTS","AMOUNT","RATE_DAILY","PERIOD"]
[330943667,1719958246750,-500.0,0.00014059,2]
[330943668,1719958246760,-500.0,0.00014059,2]
[330943669,1719958246770,-500.0,0.00014059,2]
[330943670,1719958246779,-500.0,0.00014059,2]
[330943671,1719958246791,-500.0,0.00014059,2]
[330943672,1719958246800,-500.0,0.00014059,2]
[330943673,1719958246810,-500.0,0.00014059,2]
[330943674,1719958246821,-500.0,0.00014059,2]
[330943675,1719958246830,-500.0,0.00014059,2]
[330943676,1719958246839,-500.0,0.00014059,2]
[330943677,1719958246848,-500.0,0.00014059,2]
[330943678,1719958246856,-500.0,0.00014059,2]
[330943679,1719958246865,-500.0,0.00014059,2]
[330943680,1719958246875,-500.0,0.00014059,2]
[330943681,1719958246883,-318.90391145,0.00014059,2]
[330943682,1719958246893,-500.0,0.00014059,2]
[330943683,1719958246902,-500.0,0.00014059,2]
[330943684,1719958246912,-500.0,0.00014059,2]
[330943685,1719958246921,-500.0,0.00014059,2]
[330943686,1719958246930,-5724.49,0.00014059,2]
[330943687,1719958246940,-500.0,0.00014059,2]
[330943688,1719958246949,-500.0,0.00014059,2]
[330943689,1719958246958,-500.0,0.00014059,2]
[330943690,1719958246968,-672.25,0.00014059,2]
[330943691,1719958246977,-500.0,0.00014059,2]
[330943692,1719958246986,-503.43450355,0.00014059,2]
[330943693,1719958246995,-500.0,0.00014059,2]
[330943694,1719958247006,-500.0,0.00014059,2]
[330943695,1719958247016,-500.0,0.00014059,2]
[330943696,1719958247026,-804.13,0.00014059,2]
[330943697,1719958247035,-1054.41,0.00014059,2]
[330943698,1719958247045,-511.44,0.00014059,2]
[330943699,1719958247055,-500.0,0.00014059,2]
[330943700,1719958247065,-500.0,0.00014059,2]
[330943701,1719958247074,-500.0,0.00014059,2]
[330943702,1719958247084,-500.0,0.00014059,2]
[330943703,1719958247093,-500.0,0.00014059,2]
[330943704,1719958247107,-582.49,0.00014059,2]
[330943705,1719958247121,-500.0,0.00014059,2]
[330943706,1719958247134,-500.0,0.00014059,2]
[330943707,1719958247147,-631.96,0.00014059,2]
[330943708,1719958247159,-500.0,0.00014059,2]
[330943709,1719958247170,-500.0,0.00014059,2]
[330943710,1719958247183,-500.0,0.00014059,2]
[330943711,1719958247195,-500.0,0.00014059,2]
[330943712,1719958247207,-500.0,0.00014059,2]
[330943713,1719958247220,-639.32,0.00014059,2]
[330943714,1719958247231,-500.0,0.00014059,2]
[330943715,1719958247244,-500.0,0.00014059,2]
[330943716,1719958247255,-530.92646483,0.00014059,2]
[330943717,1719958247270,-500.0,0.00014059,2]
[330943718,1719958247282,-197.65376998,0.00014059,2]
[330943719,1719958247294,-500.0,0.00014059,2]
[330943720,1719958247306,-500.75733387,0.00014059,2]
[330943721,1719958247318,-500.0,0.00014059,2]
[330943722,1719958247329,-333.02151445,0.00014059,2]
[330943723,1719958247340,-714.52,0.00014059,2]
[330943724,1719958247351,-19289.72115843,0.0001406,2]
[330943725,1719958247364,-517.44,0.0001406,2]
[330943726,1719958247376,-500.0,0.0001406,2]
[330943727,1719958247388,-12082.34,0.0001406,2]
[330943728,1719958247401,-569.96,0.0001406,2]
[330943729,1719958247411,-4123.03,0.0001406,2]
[330943730,1719958247422,-517.44,0.00014061,2]
[330943731,1719958247434,-517.44,0.00014061,2]
[330943732,1719958247445,-500.0,0.00014061,2]
[330943733,1719958247456,-500.0,0.00014061,2]
[330943734,1719958247468,-500.0,0.00014061,2]
[330943735,1719958247482,-2308.98,0.00014061,2]
[330943736,1719958247496,-1396.84,0.00014061,2]
[330943737,1719958247509,-946.67,0.00014062,2]
[330943738,1719958247530,-500.0,0.00014062,2]
[330943739,1719958247550,-684.17,0.00014062,2]
[330943740,1719958247563,-718.55,0.00014062,2]
[330943741,1719958247575,-7385.72,0.00014062,2]
[330943742,1719958247586,-3193.29,0.00014062,2]
[330943743,1719958247596,-153.0,0.00014227,2]
[330943744,1719958247609,-1929.36,0.00014331,2]
[330943745,1719958247622,-985.37,0.00014331,2]
[330943746,1719958247638,-225.64,0.00014331,2]
[330943747,1719958247651,-6260.05,0.00014331,2]
[330943748,1719958247670,-500.0,0.00014331,2]
[330943749,1719958247681,-500.0,0.00014331,2]
[330943750,1719958247691,-500.0,0.00014331,2]
[330943751,1719958247704,-1978.24,0.00014331,2]
[330943752,1719958247716,-1341.96,0.00014331,2]
[330943753,1719958247731,-2054.03,0.00014331,2]
[330943754,1719958247743,-1053.83,0.00014331,2]
[330943755,1719958247758,-500.0,0.00014331,2]
[330943756,1719958247769,-500.0,0.00014331,2]
[330943757,1719958247779,-944.12,0.00014331,2]
[330943758,1719958247790,-9732.23,0.00014331,2]
[330943759,1719958247801,-500.0,0.00014331,2]
[330943760,1719958247812,-1109.32,0.00014331,2]
[330943761,1719958247824,-3602.64,0.00014331,2]
[330943762,1719958247837,-517.44,0.00014332,2]
[330943763,1719958247853,-500.0,0.00014332,2]
[330943764,1719958247865,-500.0,0.00014332,2]
[330943765,1719958247877,-547.67,0.00014332,2]
[330943766,1719958247890,-500.0,0.00014332,2]
[330943767,1719958247905,-500.0,0.00014332,2]
[330943768,1719958247917,-500.0,0.00014332,2]
[330943769,1719958247929,-253.19603362,0.00014332,2]
[330943770,1719958247940,-500.0,0.00014332,2]
[330943771,1719958247951,-500.0,0.00014332,2]
[330943772,1719958247963,-500.0,0.00014332,2]
[330943773,1719958247974,-500.0,0.00014332,2]
[330943774,1719958247986,-500.0,0.00014332,2]
[330943775,1719958247997,-231.78,0.00014332,2]
[330943776,1719958248009,-500.0,0.00014332,2]
[330943777,1719958248020,-890.17,0.00014332,2]
[330943778,1719958248032,-500.0,0.00014332,2]
[330943779,1719958248043,-362.78,0.00014332,2]
[330943780,1719958248056,-500.0,0.00014332,2]
[330943781,1719958248068,-500.0,0.00014332,2]
[330943782,1719958248079,-500.0,0.00014332,2]
[330943783,1719958248090,-500.0,0.00014332,2]
[330943784,1719958248102,-500.0,0.00014332,2]
[330943785,1719958248112,-1128.78,0.00014332,2]
[330943786,1719958248123,-500.0,0.00014332,2]
[330943787,1719958248134,-500.0,0.00014332,2]
[330943788,1719958248145,-804.61,0.00014332,2]
[330943789,1719958248155,-998.41,0.00014332,2]
[330943790,1719958248166,-178.75,0.00014332,2]
[330943791,1719958248177,-547.4,0.00014332,2]
[330943792,1719958248188,-500.0,0.00014332,2]
[330943793,1719958248199,-500.0,0.00014332,2]
[330943794,1719958248211,-530.66,0.00014332,2]
[330943795,1719958248221,-500.0,0.00014332,2]
[330943796,1719958248232,-500.0,0.00014332,2]
[330943797,1719958248243,-500.0,0.00014332,2]
[330943798,1719958248254,-500.0,0.00014332,2]
[330943799,1719958248265,-252.31418552,0.00014332,2]
[330943800,1719958248276,-546.38,0.00014332,2]
[330943801,1719958248287,-1213.68,0.00014332,2]
[330943802,1719958248297,-698.47,0.00014332,2]
[330943803,1719958248308,-191.55,0.00014332,2]
[330943804,1719958248322,-504.59801319,0.00014332,2]
[330943805,1719958248333,-3822.23,0.00014332,2]
[330943806,1719958248345,-533.21,0.00014332,2]
[330943807,1719958248356,-500.0,0.00014332,2]
[330943808,1719958248368,-476.3104832,0.00014332,2]
[330943809,1719958248379,-621.59,0.00014332,2]
[330943810,1719958248390,-500.0,0.00014332,2]
[330943811,1719958248402,-500.0,0.00014332,2]
[330943812,1719958248413,-826.51,0.00014332,2]
[330943813,1719958248424,-384.64325468,0.00014332,2]
[330943814,1719958248435,-518.33,0.00014332,2]
[330943815,1719958248447,-883.13,0.00014332,2]
[330943816,1719958248458,-500.0,0.00014332,2]
[330943817,1719958248467,-500.0,0.00014332,2]
[330943818,1719958248477,-2838.28,0.00014333,2]
[330943819,1719958248486,-538.06,0.00014333,2]
[330943820,1719958248495,-500.0,0.00014333,2]
[330943821,1719958248505,-562.04,0.00014333,2]
[330943822,1719958248515,-517.44,0.00014333,2]
[330943823,1719958248524,-517.44,0.00014333,2]
[330943824,1719958248533,-517.44,0.00014333,2]
[330943825,1719958248543,-563.14,0.00014333,2]
[330943826,1719958248552,-500.0,0.00014333,2]
[330943827,1719958248561,-500.0,0.00014333,2]
[330943828,1719958248571,-500.0,0.00014333,2]
[330943829,1719958248740,-500.0,0.00014333,2]
[330943830,1719958248757,-500.0,0.00014333,2]
[330943831,1719958248768,-512.5664214,0.00014333,2]
[330943832,1719958248777,-500.0,0.00014333,2]
[330943833,1719958248786,-500.0,0.00014333,2]
[330943834,1719958248796,-500.0,0.00014333,2]
[330943835,1719958248805,-500.0,0.00014333,2]
[330943836,1719958248814,-500.0,0.00014333,2]
[330943837,1719958248824,-500.0,0.00014333,2]
[330943838,1719958248834,-5724.49,0.00014333,2]
[330943839,1719958248844,-500.0,0.00014333,2]
[330943840,1719958248855,-500.0,0.00014333,2]
[330943841,1719958248865,-500.0,0.00014333,2]
[330943842,1719958248875,-672.25,0.00014333,2]
[330943843,1719958248885,-500.0,0.00014333,2]
[330943844,1719958248895,-804.13,0.00014333,2]
[330943845,1719958248904,-1054.41,0.00014333,2]
[330943846,1719958248913,-511.44,0.00014333,2]
[330943847,1719958248923,-500.0,0.00014333,2]
[330943848,1719958248934,-582.49,0.00014333,2]
[330943849,1719958248944,-500.0,0.00014333,2]
[330943850,1719958248955,-631.96,0.00014333,2]
[330943851,1719958248965,-500.0,0.00014333,2]
[330943852,1719958248974,-639.32,0.00014333,2]
[330943853,1719958248983,-500.0,0.00014333,2]
[330943854,1719958248994,-500.0,0.00014333,2]
[330943855,1719958249005,-592.86849201,0.00014333,2]
[330943856,1719958249014,-714.52,0.00014333,2]
[330943857,1719958249024,-12082.34,0.00014334,2]
[330943858,1719958249034,-569.96,0.00014334,2]
[330943859,1719958249044,-4123.03,0.00014334,2]
[330943860,1719958249054,-517.44,0.00014335,2]
[330943861,1719958249064,-500.0,0.00014335,2]
[330943862,1719958249074,-2308.98,0.00014335,2]
[330943863,1719958249083,-1396.84,0.00014335,2]
[330943864,1719958249094,-946.67,0.00014336,2]
[330943865,1719958249102,-684.17,0.00014336,2]
[330943866,1719958249112,-718.55,0.00014336,2]
[330943867,1719958249121,-7385.72,0.00014336,2]
[330943868,1719958249131,-3193.29,0.00014336,2]
[330943869,1719958249140,-517.44,0.00014339,2]
[330943870,1719958249150,-88888.0,0.00014507,2]
[330943871,1719958249159,-150.0,0.0001453,2]
[330943872,1719958249168,-158.246,0.00014539,2]
[330943873,1719958249177,-1929.36,0.00014605,2]
[330943874,1719958249186,-985.37,0.00014605,2]
[330943875,1719958249195,-6260.05,0.00014605,2]
[330943876,1719958249205,-500.0,0.00014605,2]
[330943877,1719958249214,-500.0,0.00014605,2]
[330943878,1719958249223,-1978.24,0.00014605,2]
[330943879,1719958249233,-1341.96,0.00014605,2]
[330943880,1719958249243,-2054.03,0.00014605,2]
[330943881,1719958249252,-1053.83,0.00014605,2]
[330943882,1719958249261,-944.12,0.00014605,2]
[330943883,1719958249269,-9732.23,0.00014605,2]
[330943884,1719958249277,-500.0,0.00014605,2]
[330943885,1719958249284,-1109.32,0.00014605,2]
[330943886,1719958249293,-3602.64,0.00014605,2]
[330943887,1719958249301,-613.28,0.00014606,2]
[330943888,1719958249309,-500.0,0.00014606,2]
[330943889,1719958249318,-171.80045941,0.00014606,2]
[330943890,1719958249326,-500.0,0.00014606,2]
[330943891,1719958249335,-890.17,0.00014606,2]
[330943892,1719958249343,-500.0,0.00014606,2]
[330943893,1719958249351,-1128.78,0.00014606,2]
[330943894,1719958249359,-500.0,0.00014606,2]
[330943895,1719958249366,-804.61,0.00014606,2]
[330943896,1719958249375,-998.41,0.00014606,2]
[330943897,1719958249383,-547.4,0.00014606,2]
[330943898,1719958249391,-500.0,0.00014606,2]
[330943899,1719958249399,-500.0,0.00014606,2]
[330943900,1719958249408,-530.66,0.00014606,2]
[330943901,1719958249417,-500.0,0.00014606,2]
[330943902,1719958249425,-500.0,0.00014606,2]
[330943903,1719958249433,-546.38,0.00014606,2]
[330943904,1719958249441,-1213.68,0.00014606,2]
[330943905,1719958249450,-698.47,0.00014606,2]
[330943906,1719958249459,-3822.23,0.00014606,2]
[330943907,1719958249468,-500.0,0.00014606,2]
[330943908,1719958249477,-621.59,0.00014606,2]
[330943909,1719958249487,-500.0,0.00014606,2]
[330943910,1719958249496,-826.51,0.00014606,2]
[330943911,1719958249506,-883.13,0.00014606,2]
[330943912,1719958249515,-500.0,0.00014606,2]
[330943913,1719958249529,-500.0,0.00014606,2]
[330943914,1719958249538,-2838.28,0.00014607,2]
[330943915,1719958249547,-538.06,0.00014607,2]
[330943916,1719958249556,-316.53,0.00014607,2]
[330943917,1719958249566,-517.44,0.00014607,2]
[330943918,1719958249575,-517.44,0.00014607,2]
[330943919,1719958249584,-517.44,0.00014607,2]
[330943920,1719958249593,-563.14,0.00014607,2]
[330943921,1719958249602,-500.0,0.00014607,2]
[330943922,1719958249612,-500.0,0.00014607,2]
[330943923,1719958249628,-500.0,0.00014607,2]
[330943924,1719958249642,-5724.49,0.00014607,2]
[330943925,1719958249652,-500.0,0.00014607,2]
[330943926,1719958249668,-500.0,0.00014607,2]
[330943927,1719958249679,-672.25,0.00014607,2]
[330943928,1719958249689,-500.0,0.00014607,2]
[330943929,1719958249699,-804.13,0.00014607,2]
[330943930,1719958249708,-1054.41,0.00014607,2]
[330943931,1719958249718,-511.44,0.00014607,2]
[330943932,1719958249730,-500.0,0.00014607,2]
[330943933,1719958249740,-582.49,0.00014607,2]
[330943934,1719958249750,-214.34415311,0.00014607,2]
[330943935,1719958249762,-631.96,0.00014607,2]
[330943936,1719958249771,-500.0,0.00014607,2]
[330943937,1719958249780,-639.32,0.00014607,2]
[330943938,1719958249790,-500.0,0.00014607,2]
[330943939,1719958249801,-500.0,0.00014607,2]
[330943940,1719958249810,-714.52,0.00014607,2]
[330943941,1719958249821,-7816.39666905,0.00014608,2]
[330943942,1719958295532,373.81482657,9.999e-05,2]
[330943944,1719958516187,409.1336963,0.00013957,2]
[330943945,1719958539980,200.1169025,0.00013699,2]
[330943949,1719958737627,3789.7970161,0.00013957,2]
[330943950,1719958739643,3789.79701609,0.0001399,2]
[330943952,1719958801357,396.49513064,0.00013956,2]
[330943954,1719958896537,154.86836189,9.999e-05,2]
[330943956,1719959081924,366.18481242,0.00013956,2]
[330943957,1719959142879,2273.87820967,0.00013956,2]
[330943958,1719959144791,2273.87820965,0.00013957,2]
[330943959,1719959146875,2273.87820965,0.00013957,2]
[330943960,1719959148860,2273.87820965,0.00013958,2]
[330943961,1719959150762,2273.87820965,0.00013958,2]
[330943962,1719959162565,309.64390024,9.999e-05,2]
[330943963,1719959177556,309.64390024,9.999e-05,2]
[330943964,1719959204317,1189.0,0.00014,2]
[330943968,1719959362398,358.91485721,0.00013955,2]
[330943969,1719959400172,-300.0,0.00014054,2]
[330943970,1719959400202,-349.28367583,0.00014055,2]
[330943971,1719959400242,-150.71632417,0.00014055,2]
[330943972,1719959400271,-498.56735166,0.00014055,2]
[330943973,1719959400327,-1.43264834,0.00014055,2]
[330943974,1719959400356,-332.60220073,0.00014055,2]
[330944094,1719959438855,-500.0,0.00014054,2]
[330944095,1719959438865,-167.39779927,0.00014055,2]
[330944097,1719959438875,-500.0,0.00014055,2]
[330944098,1719959438884,-500.0,0.00014055,2]
[330944099,1719959438894,-829.69,0.00014055,2]
[330944100,1719959438903,-500.0,0.00014055,2]
[330944101,1719959438912,-855.91398361,0.00014055,2]
[330944103,1719959438992,-194.48601639,0.00014055,2]
[330944104,1719959439002,-545.02733015,0.00014055,2]
[330944105,1719959439012,-500.0,0.00014055,2]
[330944106,1719959439032,-500.0,0.00014055,2]
[330944107,1719959439048,-500.0,0.00014055,2]
[330944108,1719959439059,-762.05,0.00014055,2]
[330944109,1719959439070,-953.93,0.00014055,2]
[330944110,1719959439082,-496.72665661,0.00014055,2]
[330944111,1719959439093,-500.0,0.00014055,2]
[330944112,1719959439103,-8975.13,0.00014055,2]
[330944113,1719959439114,-1037.96,0.00014055,2]
[330944114,1719959439127,-427.37,0.00014055,2]
[330944115,1719959439137,-506.33,0.00014055,2]
[330944116,1719959439148,-1817.28,0.00014055,2]
[330944117,1719959439158,-500.0,0.00014055,2]
[330944118,1719959439168,-520.42,0.00014055,2]
[330944119,1719959439178,-500.0,0.00014055,2]
[330944120,1719959439189,-500.0,0.00014055,2]
[330944121,1719959439199,-500.0,0.00014055,2]
[330944122,1719959439209,-500.0,0.00014055,2]
[330944123,1719959439219,-500.0,0.00014055,2]
[330944124,1719959439229,-500.0,0.00014055,2]
[330944125,1719959439241,-500.0,0.00014055,2]
[330944126,1719959439251,-500.71,0.00014055,2]
[330944127,1719959439261,-916.27,0.00014055,2]
[330944128,1719959439271,-579.85,0.00014055,2]
[330944129,1719959439281,-506.90483982,0.00014055,2]
[330944130,1719959439292,-500.0,0.00014055,2]
[330944131,1719959439303,-525.93,0.00014055,2]
[330944132,1719959439313,-500.0,0.00014055,2]
[330944133,1719959439323,-564.24,0.00014055,2]
[330944134,1719959439333,-500.0,0.00014055,2]
[330944135,1719959439344,-500.0,0.00014055,2]
[330944136,1719959439354,-500.0,0.00014055,2]
[330944137,1719959439364,-500.0,0.00014055,2]
[330944138,1719959439374,-612.76,0.00014055,2]
[330944139,1719959439384,-500.0,0.00014055,2]
[330944140,1719959439394,-500.0,0.00014055,2]
[330944141,1719959439405,-500.0,0.00014055,2]
[330944142,1719959439415,-1854.41,0.00014055,2]
[330944143,1719959439425,-596.64,0.00014055,2]
[330944144,1719959439436,-500.0,0.00014055,2]
[330944145,1719959439446,-500.0,0.00014055,2]
[330944146,1719959439456,-500.0,0.00014055,2]
[330944147,1719959439466,-500.0,0.00014055,2]
[330944148,1719959439476,-1918.32,0.00014055,2]
[330944149,1719959439486,-1223.05,0.00014055,2]
[330944150,1719959439501,-981.91,0.00014055,2]
[330944151,1719959439511,-500.0,0.00014055,2]
[330944152,1719959439527,-500.0,0.00014055,2]
[330944153,1719959439537,-880.61,0.00014055,2]
[330944154,1719959439547,-500.0,0.00014055,2]
[330944155,1719959439557,-500.0,0.00014055,2]
[330944156,1719959439567,-827.78,0.00014055,2]
[330944157,1719959439577,-500.0,0.00014055,2]
[330944158,1719959439586,-500.0,0.00014055,2]
[330944159,1719959439596,-500.0,0.00014055,2]
[330944160,1719959439605,-500.0,0.00014056,2]
[330944161,1719959439615,-500.0,0.00014056,2]
[330944162,1719959439624,-500.0,0.00014056,2]
[330944163,1719959439634,-289.91314799,0.00014056,2]
[330944164,1719959439643,-595.32416715,0.00014056,2]
[330944165,1719959439652,-500.0,0.00014056,2]
[330944166,1719959439662,-500.0,0.00014056,2]
[330944167,1719959439673,-500.0,0.00014056,2]
[330944168,1719959439683,-500.0,0.00014056,2]
[330944169,1719959439692,-500.0,0.00014056,2]
[330944170,1719959439702,-322.00160382,0.00014056,2]
[330944171,1719959439712,-500.0,0.00014056,2]
[330944172,1719959439722,-500.0,0.00014056,2]
[330944173,1719959439731,-500.0,0.00014056,2]
[330944174,1719959439744,-500.0,0.00014056,2]
[330944175,1719959439754,-500.0,0.00014056,2]
[330944176,1719959439763,-500.0,0.00014056,2]
[330944177,1719959439774,-481.55061442,0.00014056,2]
[330944193,1719959441227,-500.0,0.00014055,2]
[330944194,1719959441237,-18.44938558,0.00014056,2]
[330944195,1719959441248,-500.0,0.00014056,2]
[330944196,1719959441257,-500.0,0.00014056,2]
[330944197,1719959441266,-500.0,0.00014056,2]
[330944198,1719959441275,-500.0,0.00014056,2]
[330944199,1719959441285,-500.0,0.00014056,2]
[330944200,1719959441294,-500.0,0.00014056,2]
[330944201,1719959441304,-517.57,0.00014056,2]
[330944202,1719959441314,-500.0,0.00014056,2]
[330944203,1719959441323,-226.59987774,0.00014056,2]
[330944204,1719959441332,-572.18323163,0.00014056,2]
[330944205,1719959441342,-500.0,0.00014056,2]
[330944206,1719959441352,-500.0,0.00014056,2]
[330944207,1719959441362,-500.0,0.00014056,2]
[330944208,1719959441371,-500.0,0.00014056,2]
[330944209,1719959441381,-632.1,0.00014056,2]
[330944210,1719959441390,-505.31255802,0.00014056,2]
[330944211,1719959441400,-500.0,0.00014056,2]
[330944212,1719959441410,-500.0,0.00014056,2]
[330944213,1719959441420,-500.0,0.00014056,2]
[330944214,1719959441430,-500.0,0.00014056,2]
[330944215,1719959441440,-500.0,0.00014056,2]
[330944216,1719959441450,-500.0,0.00014056,2]
[330944217,1719959441459,-500.0,0.00014056,2]
[330944218,1719959441469,-500.0,0.00014056,2]
[330944219,1719959441480,-500.0,0.00014056,2]
[330944220,1719959441490,-502.96161844,0.00014056,2]
[330944221,1719959441500,-500.0,0.00014056,2]
[330944222,1719959441510,-500.0,0.00014056,2]
[330944223,1719959441520,-500.0,0.00014056,2]
[330944224,1719959441530,-500.0,0.00014056,2]
[330944225,1719959441540,-500.0,0.00014056,2]
[330944226,1719959441550,-500.0,0.00014056,2]
[330944227,1719959441560,-545.77,0.00014056,2]
[330944228,1719959441572,-500.0,0.00014056,2]
[330944229,1719959441582,-500.0,0.00014056,2]
[330944230,1719959441592,-500.0,0.00014056,2]
[330944231,1719959441601,-500.0,0.00014056,2]
[330944232,1719959441611,-500.0,0.00014056,2]
[330944233,1719959441620,-500.0,0.00014056,2]
[330944234,1719959441630,-500.0,0.00014056,2]
[330944235,1719959441639,-500.0,0.00014056,2]
[330944236,1719959441648,-500.0,0.00014056,2]
[330944237,1719959441658,-500.0,0.00014056,2]
[330944238,1719959441667,-500.0,0.00014056,2]
[330944239,1719959441677,-500.0,0.00014056,2]
[330944240,1719959441686,-500.0,0.00014056,2]
[330944241,1719959441696,-500.0,0.00014056,2]
[330944242,1719959441705,-500.0,0.00014056,2]
[330944243,1719959441715,-458.22800551,0.00014056,2]
[330944244,1719959441725,-500.0,0.00014056,2]
[330944245,1719959441734,-500.0,0.00014056,2]
[330944246,1719959441746,-500.0,0.00014056,2]
[330944247,1719959441755,-500.0,0.00014056,2]
[330944248,1719959441765,-500.0,0.00014056,2]
[330944249,1719959441775,-504.65,0.00014056,2]
[330944250,1719959441784,-500.0,0.00014056,2]
[330944251,1719959441794,-500.0,0.00014056,2]
[330944252,1719959441803,-500.0,0.00014056,2]
[330944253,1719959441814,-500.0,0.00014056,2]
[330944254,1719959441823,-500.0,0.00014056,2]
[330944255,1719959441833,-500.0,0.00014056,2]
[330944256,1719959441842,-500.0,0.00014056,2]
[330944257,1719959441851,-500.0,0.00014056,2]
[330944258,1719959441860,-500.0,0.00014056,2]
[330944259,1719959441870,-500.0,0.00014056,2]
[330944260,1719959441879,-500.0,0.00014056,2]
[330944261,1719959441888,-500.0,0.00014056,2]
[330944262,1719959441897,-193.59896589,0.00014056,2]
[330944263,1719959441907,-500.0,0.00014056,2]
[330944264,1719959441916,-500.0,0.00014056,2]
[330944265,1719959441926,-500.0,0.00014056,2]
[330944266,1719959441935,-500.0,0.00014056,2]
[330944267,1719959441944,-500.85030388,0.00014056,2]
[330944268,1719959441954,-500.0,0.00014056,2]
[330944269,1719959441963,-500.0,0.00014056,2]
[330944270,1719959441972,-500.0,0.00014056,2]
[330944271,1719959441981,-500.0,0.00014056,2]
[330944272,1719959441990,-500.0,0.00014056,2]
[330944273,1719959441999,-500.97165346,0.00014056,2]
[330944274,1719959442008,-500.0,0.00014056,2]
[330944275,1719959442017,-500.0,0.00014056,2]
[330944276,1719959442027,-562.15,0.00014056,2]
[330944277,1719959442036,-500.0,0.00014056,2]
[330944278,1719959442045,-500.0,0.00014056,2]
[330944279,1719959442059,-541.27,0.00014056,2]
[330944280,1719959442068,-500.0,0.00014056,2]
[330944281,1719959442077,-500.0,0.00014056,2]
[330944282,1719959442087,-411.2791331,0.00014056,2]
[330944283,1719959442103,-88.7208669,0.00014056,2]
[330944284,1719959442113,-500.0,0.00014056,2]
[330944285,1719959442122,-500.0,0.00014056,2]
[330944286,1719959442132,-548.13,0.00014056,2]
[330944287,1719959442143,-500.0,0.00014056,2]
[330944288,1719959442154,-500.0,0.00014056,2]
[330944289,1719959442163,-500.0,0.00014056,2]
[330944290,1719959442172,-500.0,0.00014056,2]
[330944291,1719959442182,-280.07980987,0.00014056,2]
[330944292,1719959442191,-500.0,0.00014056,2]
[330944293,1719959442200,-500.0,0.00014056,2]
[330944294,1719959442209,-500.0,0.00014056,2]
[330944295,1719959442218,-500.0,0.00014056,2]
[330944296,1719959442227,-496.71962602,0.00014056,2]
[330944297,1719959442237,-500.0,0.00014056,2]
[330944298,1719959442247,-500.0,0.00014056,2]
[330944299,1719959442257,-500.0,0.00014056,2]
[330944300,1719959442266,-500.0,0.00014056,2]
[330944301,1719959442275,-500.0,0.00014056,2]
[330944302,1719959442285,-500.0,0.00014056,2]
[330944303,1719959442294,-500.0,0.00014056,2]
[330944304,1719959442304,-500.0,0.00014056,2]
[330944305,1719959442313,-500.0,0.00014056,2]
[330944306,1719959442323,-500.0,0.00014056,2]
[330944307,1719959442332,-500.0,0.00014056,2]
[330944308,1719959442342,-622.19,0.00014056,2]
[330944309,1719959442498,-500.0,0.00014056,2]
[330944310,1719959442509,-500.44091323,0.00014056,2]
[330944311,1719959442519,-524.99,0.00014056,2]
[330944312,1719959442538,-500.0,0.00014056,2]